Workbook

Sheet CS
A1: MDM/IT Vergütung - Datat Processing + Storage | F1: Jahr: | G1: 2025
A3: Vergütung je 1k Transaktion | B3: 15.00 €
A4: je Transaktion | B4: =B3/1000 -> 0.0150 €
A6: Monat | G6: Summe | H6: Kosten / Monat
B7: IDS | C7: PLOSE | D7: ASFINAG | E7: MSE | F7: UTA
A8: Januar | B8: 6,969 | C8: 195,985 | D8: 735 | E8: 49,881 | F8: 33,533 | G8: =SUM(B8:F8) -> 287,103 | H8: =G8*$B$4 -> 4,306.55 €
A9: Februar | B9: 7,847 | C9: 233,329 | D9: 783 | E9: 52,442 | F9: 38,495 | G9: =C9+F9 -> 271,824 | H9: =G9*$B$4 -> 4,077.36 €
A10: März | B10: 8,259 | C10: 256,607 | D10: 693 | E10: 54,196 | F10: 40,243 | G10: =C10+F10 -> 296,850 | H10: 4,452.75 €
A11: April | B11: 7,840 | C11: 229,663 | D11: 551 | E11: 45,720 | F11: 38,327 | G11: =C11+F11 -> 267,990 | H11: 4,019.85 €
A12: Mai | B12: 7,876 | C12: 257,833 | D12: 504 | E12: 40,710 | F12: 37,589 | G12: =C12+F12 -> 295,422 | H12: 4,431.33 €
A13: Juni | B13: 7,812 | C13: 247,467 | D13: 519 | E13: 37,341 | F13: 37,478 | G13: =C13+F13 -> 284,945 | H13: 4,274.18 €
A14: Juli | B14: 8,067 | C14: 277,478 | D14: 499 | E14: 35,344 | F14: 40,604 | G14: =C14+F14 -> 318,082 | H14: 4,771.23 €
A15: August | B15: 6,250 | C15: 216,015 | D15: 359 | E15: 26,800 | F15: 28,985 | G15: =C15+F15 -> 245,000 | H15: 3,675.00 €
A16: September | H16: 0
A17: Oktober | H17: 0
A18: November | H18: 0
A19: Dezember | H19: 0
A20: Summe | B20: =SUM(B8:B19) -> 60,920 | C20: =SUM(C8:C19) -> 1,914,377 | D20: 4,643 | E20: 342,434 | F20: 295,254 | G20: 2,267,216 | H20: -
A21: Kosten | B21: =B20*$B$4 -> 913.80 € | C21: =C20*$B$4 -> 28,715.66 € | D21: 69.65 € | E21: 5,136.51 € | F21: 4,428.81 € | G21: 34,008.24 € | H21: =SUM(H8:H19) -> 34,008.24 €
A23: Gesamtsumme | B23: =G21 -> 34,008.24 €
